fUSD/lending_fUSD_20250606
["ID","MTS","AMOUNT","RATE_DAILY","PERIOD"]
[364796148,1749244243055,-7744.79,0.00027397,5]
[364796151,1749244243064,-480.0,0.00027397,5]
[364796153,1749244243074,-351.21070403,0.00027397,5]
[364796155,1749244243083,-2136.85,0.00027397,5]
[364796157,1749244243092,-656.64,0.00027397,5]
[364796159,1749244243102,-1032.42,0.00027397,5]
[364796161,1749244243111,-480.0,0.00027397,5]
[364796163,1749244243120,-629.61201637,0.00027397,5]
[364796165,1749244243129,-6066.12,0.00027397,5]
[364796167,1749244243138,-480.0,0.00027397,5]
[364796169,1749244243148,-480.0,0.00027397,5]
[364796171,1749244243157,-480.0,0.00027397,5]
[364796173,1749244243167,-248.69335797,0.00027397,5]
[364796175,1749244243177,-199.40044239,0.00027397,2]
[364796177,1749244243186,-480.0,0.00027397,5]
[364796179,1749244243195,-736.69,0.00027397,5]
[364796180,1749244243203,-480.0,0.00027397,5]
[364796182,1749244243212,-674.12,0.00027397,5]
[364796184,1749244243221,-480.0,0.00027397,5]
[364796186,1749244243230,-909.27,0.00027397,5]
[364796188,1749244243240,-480.0,0.00027397,5]
[364796191,1749244243249,-480.0,0.00027397,5]
[364796192,1749244243259,-480.0,0.00027397,5]
[364796194,1749244243268,-480.0,0.00027397,5]
[364796197,1749244243277,-864.24,0.00027397,5]
[364796198,1749244243286,-2022.35,0.00027397,5]
[364796200,1749244243295,-4209.59,0.00027397,5]
[364796202,1749244243305,-814.24,0.00027397,5]
[364796204,1749244243314,-480.0,0.00027397,5]
[364796206,1749244243323,-480.0,0.00027397,5]
[364796207,1749244243332,-1490.45,0.00027397,5]
[364796208,1749244243341,-248.15643598,0.00027397,5]
[364796209,1749244243350,-539.32430531,0.00027397,5]
[364796210,1749244243359,-480.0,0.00027397,5]
[364796211,1749244243370,-480.0,0.00027397,5]
[364796212,1749244243379,-480.0,0.00027397,5]
[364796213,1749244243388,-480.0,0.00027397,5]
[364796214,1749244243398,-480.0,0.00027397,5]
[364796215,1749244243408,-3470.14,0.00027397,5]
[364796216,1749244243417,-646.24,0.00027397,5]
[364796217,1749244243426,-1958.13,0.00027397,5]
[364796218,1749244243435,-1094.2,0.00027397,5]
[364796219,1749244243445,-480.0,0.00027397,5]
[364796220,1749244243454,-480.0,0.00027397,5]
[364796221,1749244243463,-480.0,0.00027397,5]
[364796222,1749244243473,-1081.32,0.00027397,5]
[364796223,1749244243482,-993.73,0.00027397,5]
[364796224,1749244243492,-1166.04,0.00027397,5]
[364796225,1749244243502,-492.64,0.00027397,5]
[364796226,1749244243512,-1784.97,0.00027397,5]
[364796227,1749244243522,-480.0,0.00027397,5]
[364796228,1749244243531,-480.0,0.00027397,5]
[364796229,1749244243540,-480.0,0.00027397,5]
[364796230,1749244243549,-1728.24,0.00027397,5]
[364796231,1749244243558,-321.24603856,0.00027397,5]
[364796232,1749244243568,-930.73,0.00027397,5]
[364796233,1749244243578,-480.0,0.00027397,5]
[364796234,1749244243588,-2507.7,0.00027397,5]
[364796235,1749244243601,-812.66,0.00027397,5]
[364796237,1749244243611,-480.0,0.00027397,5]
[364796238,1749244243619,-748.45,0.00027397,5]
[364796240,1749244243628,-480.0,0.00027397,5]
[364796242,1749244243638,-898.21,0.00027397,5]
[364796244,1749244243647,-758.37,0.00027397,5]
[364796245,1749244243657,-480.0,0.00027397,5]
[364796246,1749244243666,-833.19,0.00027397,5]
[364796248,1749244243676,-480.0,0.00027397,5]
[364796250,1749244243686,-480.0,0.00027397,5]
[364796252,1749244243695,-480.0,0.00027397,5]
[364796254,1749244243705,-480.0,0.00027397,5]
[364796256,1749244243714,-480.0,0.00027397,5]
[364796257,1749244243723,-990.17,0.00027397,5]
[364796259,1749244243733,-497.01,0.00027397,5]
[364796260,1749244243742,-480.0,0.00027397,5]
[364796261,1749244243750,-544.26,0.00027397,5]
[364796262,1749244243760,-480.0,0.00027397,5]
[364796263,1749244243769,-480.0,0.00027397,5]
[364796264,1749244243778,-480.0,0.00027397,5]
[364796265,1749244243787,-480.0,0.00027397,5]
[364796266,1749244243796,-532.61,0.00027397,5]
[364796267,1749244243804,-2049.03,0.00027397,5]
[364796268,1749244243813,-480.0,0.00027397,5]
[364796269,1749244243822,-480.0,0.00027397,5]
[364796270,1749244243832,-1173.17,0.00027397,5]
[364796271,1749244243841,-480.0,0.00027397,5]
[364796272,1749244243850,-528.28646264,0.00027397,5]
[364796273,1749244243859,-480.0,0.00027397,5]
[364796274,1749244243869,-480.0,0.00027397,5]
[364796276,1749244243878,-480.0,0.00027397,5]
[364796277,1749244243887,-480.0,0.00027397,5]
[364796278,1749244243897,-1000.0,0.00027397,5]
[364796279,1749244243906,-657.99,0.00027397,5]
[364796280,1749244243916,-561.78,0.00027397,5]
[364796281,1749244243925,-288.846703,0.00027397,5]
[364796282,1749244243935,-288.846703,0.00027397,5]
[364796283,1749244243944,-288.846703,0.00027397,5]
[364796284,1749244243954,-650.57,0.00027397,5]
[364796285,1749244243963,-1694.44,0.00027397,5]
[364796286,1749244243973,-288.846703,0.00027397,5]
[364796287,1749244243982,-288.846703,0.00027397,5]
[364796288,1749244243992,-480.0,0.00027397,5]
[364796289,1749244244001,-288.846703,0.00027397,5]
[364796290,1749244244010,-611.49,0.00027397,5]
[364796291,1749244244020,-1468.34,0.00027397,5]
[364796292,1749244244029,-14979.31,0.00027397,5]
[364796293,1749244244039,-692.49,0.00027397,5]
[364796294,1749244244049,-5339.5,0.00027397,5]
[364796295,1749244244058,-2290.63,0.00027397,5]
[364796296,1749244244068,-480.0,0.00027397,5]
[364796297,1749244244077,-480.0,0.00027397,5]
[364796298,1749244244087,-1776.54,0.00027397,5]
[364796299,1749244244096,-480.0,0.00027397,5]
[364796300,1749244244106,-508.95,0.00027397,5]
[364796301,1749244244115,-480.0,0.00027397,5]
[364796302,1749244244125,-480.0,0.00027397,5]
[364796303,1749244244135,-480.0,0.00027397,5]
[364796304,1749244244144,-480.0,0.00027397,2]
[364796305,1749244244155,-480.0,0.00027397,5]
[364796306,1749244244165,-2359.77,0.00027397,5]
[364796307,1749244244175,-480.0,0.00027397,5]
[364796308,1749244244186,-675.52,0.00027397,5]
[364796309,1749244244196,-480.0,0.00027397,5]
[364796310,1749244244207,-480.0,0.00027397,5]
[364796311,1749244244216,-5936.43,0.00027397,5]
[364796312,1749244244226,-480.0,0.00027397,5]
[364796313,1749244244235,-480.0,0.00027397,2]
[364796314,1749244244245,-480.0,0.00027397,5]
[364796315,1749244244254,-885.12,0.00027397,2]
[364796316,1749244244264,-158.01,0.00027397,2]
[364796317,1749244244274,-9999.99,0.00027397,2]
[364796318,1749244244283,-9999.99,0.00027397,2]
[364796319,1749244244295,-1135.86,0.00027397,2]
[364796320,1749244244306,-499.99,0.00027397,2]
[364796321,1749244244316,-150.99,0.00027397,2]
[364796322,1749244244327,-150.99,0.00027397,2]
[364796323,1749244244336,-999.99,0.00027397,2]
[364796324,1749244244346,-9999.99,0.00027397,2]
[364796325,1749244244355,-12426.61,0.00027397,2]
[364796326,1749244244364,-1100.12,0.00027397,5]
[364796327,1749244244373,-390.25,0.00027397,10]
[364796328,1749244244383,-2472.31,0.00027397,2]
[364796329,1749244244392,-600.0,0.000274,10]
[364796330,1749244244402,-5024.81271716,0.00027405,2]
[364796331,1749244244411,-58965.69,0.0002743,2]
[364796332,1749244244420,-5000.0,0.00027448,2]
[364796333,1749244244430,-4081.0,0.00027469,2]
[364796334,1749244244441,-7017.0,0.00027469,2]
[364796335,1749244244454,-201.36,0.00027469,2]
[364796336,1749244244464,-295.506,0.00027469,2]
[364796337,1749244244473,-922.88,0.00027469,2]
[364796338,1749244244483,-852.0,0.00027469,2]
[364796339,1749244244492,-900.0,0.000275,10]
[364796340,1749244244501,-8548.80709157,0.00027528,2]
[364796341,1749244244510,-14710.4628073,0.00027531,2]
[364796342,1749244244519,-8548.80709157,0.00027541,2]
[364796343,1749244244529,-102973.239651,0.00027551,2]
[364796344,1749244244538,-119683.299282,0.00027551,2]
[364796345,1749244244547,-500.0,0.0002756,2]
[364796346,1749244244556,-150.0,0.0002756,2]
[364796347,1749244244565,-480.0,0.00027561,5]
[364796348,1749244244574,-480.0,0.00027561,5]
[364796349,1749244244584,-480.0,0.00027561,5]
[364796350,1749244244597,-480.0,0.00027561,5]
[364796351,1749244244606,-480.0,0.00027561,5]
[364796352,1749244244615,-480.0,0.00027561,5]
[364796353,1749244244624,-727.0,0.00027561,5]
[364796354,1749244244635,-480.0,0.00027561,5]
[364796355,1749244244644,-743.648709,0.00027561,5]
[364796356,1749244244653,-482.16,0.00027561,5]
[364796357,1749244244662,-480.0,0.00027561,5]
[364796358,1749244244671,-480.0,0.00027561,5]
[364796359,1749244244680,-480.0,0.00027561,5]
[364796360,1749244244689,-599.17,0.00027561,5]
[364796361,1749244244699,-480.0,0.00027561,5]
[364796362,1749244244709,-480.0,0.00027561,5]
[364796363,1749244244718,-480.0,0.00027561,5]
[364796364,1749244244727,-480.0,0.00027561,5]
[364796365,1749244244736,-587.98,0.00027561,5]
[364796366,1749244244746,-480.0,0.00027561,5]
[364796367,1749244244755,-487.2,0.00027561,5]
[364796368,1749244244765,-480.0,0.00027561,5]
[364796369,1749244244774,-480.0,0.00027561,5]
[364796370,1749244244783,-480.0,0.00027561,5]
[364796371,1749244244792,-480.0,0.00027561,5]
[364796372,1749244244802,-480.0,0.00027561,5]
[364796373,1749244244811,-480.0,0.00027561,5]
[364796374,1749244244821,-480.0,0.00027561,5]
[364796375,1749244244830,-605.77,0.00027561,5]
[364796376,1749244244839,-480.0,0.00027561,5]
[364796377,1749244244849,-550.76,0.00027561,5]
[364796378,1749244244858,-480.0,0.00027561,5]
[364796379,1749244244868,-480.0,0.00027561,5]
[364796380,1749244245071,-421.89289531,0.00027561,5]
[364796381,1749244245081,-480.0,0.00027561,5]
[364796382,1749244245091,-480.0,0.00027561,5]
[364796383,1749244245100,-480.0,0.00027561,5]
[364796384,1749244245109,-480.0,0.00027561,5]
[364796385,1749244245119,-513.24,0.00027561,5]
[364796386,1749244245129,-480.0,0.00027561,5]
[364796387,1749244245138,-661.08,0.00027561,5]
[364796388,1749244245147,-480.0,0.00027561,5]
[364796389,1749244245158,-480.0,0.00027561,5]
[364796390,1749244245169,-496.08,0.00027561,5]
[364796391,1749244245179,-480.0,0.00027561,5]
[364796392,1749244245189,-480.0,0.00027561,5]
[364796393,1749244245199,-480.0,0.00027561,5]
[364796394,1749244245209,-480.0,0.00027561,5]
[364796395,1749244245219,-816.52,0.00027561,5]
[364796396,1749244245228,-480.0,0.00027561,5]
[364796397,1749244245238,-989.58,0.00027561,5]
[364796398,1749244245248,-480.0,0.00027561,5]
[364796399,1749244245258,-480.0,0.00027561,5]
[364796400,1749244245268,-480.0,0.00027561,5]
[364796401,1749244245279,-480.0,0.00027561,5]
[364796402,1749244245288,-480.0,0.00027561,5]
[364796403,1749244245299,-480.0,0.00027561,5]
[364796404,1749244245309,-602.89,0.00027561,5]
[364796405,1749244245319,-480.0,0.00027561,5]
[364796406,1749244245328,-302.77426636,0.00027561,5]
[364796407,1749244245337,-480.0,0.00027561,5]
[364796408,1749244245347,-503.25,0.00027561,5]
[364796409,1749244245356,-480.0,0.00027561,5]
[364796410,1749244245366,-480.0,0.00027561,5]
[364796411,1749244245377,-480.0,0.00027561,5]
[364796412,1749244245386,-480.0,0.00027561,5]
[364796413,1749244245396,-480.0,0.00027561,5]
[364796414,1749244245407,-488.77,0.00027561,5]
[364796415,1749244245416,-480.0,0.00027561,5]
[364796416,1749244245426,-480.0,0.00027561,5]
[364796417,1749244245435,-845.34,0.00027561,5]
[364796418,1749244245445,-480.0,0.00027561,5]
[364796419,1749244245455,-192.08,0.00027561,5]
[364796420,1749244245464,-480.0,0.00027561,5]
[364796421,1749244245474,-480.0,0.00027561,5]
[364796422,1749244245484,-480.0,0.00027561,5]
[364796423,1749244245494,-480.0,0.00027561,5]
[364796424,1749244245504,-480.0,0.00027561,5]
[364796425,1749244245514,-480.0,0.00027561,5]
[364796426,1749244245523,-1000.0,0.00027561,5]
[364796427,1749244245532,-480.0,0.00027561,5]
[364796428,1749244245542,-488.13,0.00027561,5]
[364796429,1749244245552,-480.0,0.00027561,5]
[364796430,1749244245562,-480.0,0.00027561,5]
[364796431,1749244245572,-493.88,0.00027561,5]
[364796432,1749244245581,-480.0,0.00027561,5]
[364796433,1749244245595,-480.0,0.00027561,5]
[364796434,1749244245604,-480.0,0.00027561,5]
[364796435,1749244245614,-480.0,0.00027561,5]
[364796436,1749244245624,-814.13,0.00027561,5]
[364796437,1749244245634,-605.98,0.00027561,5]
[364796438,1749244245644,-480.0,0.00027561,5]
[364796439,1749244245653,-480.0,0.00027561,5]
[364796440,1749244245664,-243.932424,0.00027561,5]
[364796441,1749244245675,-576.66,0.00027561,5]
[364796442,1749244245685,-480.0,0.00027561,5]
[364796443,1749244245695,-600.0,0.00027561,30]
[364796444,1749244245706,-480.0,0.00027561,5]
[364796445,1749244245715,-480.0,0.00027561,5]
[364796446,1749244245725,-693.08,0.00027561,5]
[364796447,1749244245735,-480.0,0.00027561,5]
[364796448,1749244245744,-635.37,0.00027561,5]
[364796449,1749244245754,-480.0,0.00027561,5]
[364796450,1749244245764,-6369.47,0.00027561,5]
[364796451,1749244245774,-759.78,0.00027561,5]
[364796452,1749244245783,-1000.0,0.00027561,2]
[364796453,1749244245794,-480.0,0.00027561,5]
[364796454,1749244245804,-1326.82,0.00027561,5]
[364796455,1749244245814,-1508.83,0.00027561,5]
[364796456,1749244245824,-480.0,0.00027561,5]
[364796457,1749244245834,-480.0,0.00027561,5]
[364796458,1749244245844,-480.0,0.00027561,5]
[364796459,1749244245854,-787.8,0.00027561,5]
[364796460,1749244245864,-508.09,0.00027561,5]
[364796461,1749244245873,-683.05,0.00027561,5]
[364796462,1749244245883,-1314.21,0.00027561,5]
[364796463,1749244245893,-480.0,0.00027561,5]
[364796464,1749244245902,-953.5,0.00027561,5]
[364796465,1749244245912,-645.4,0.00027561,5]
[364796466,1749244245923,-480.0,0.00027561,5]
[364796467,1749244245933,-480.0,0.00027561,5]
[364796468,1749244245943,-945.39,0.00027561,5]
[364796469,1749244245952,-966.02,0.00027561,5]
[364796470,1749244245962,-480.91,0.00027561,5]
[364796471,1749244245972,-650.58,0.00027561,5]
[364796472,1749244245983,-480.0,0.00027561,5]
[364796473,1749244245992,-1563.49,0.00027561,5]
[364796474,1749244246002,-480.0,0.00027561,5]
[364796475,1749244246013,-1630.49,0.00027561,5]
[364796476,1749244246023,-480.0,0.00027561,5]
[364796477,1749244246032,-756.25,0.00027561,5]
[364796478,1749244246042,-1110.62,0.00027561,5]
[364796479,1749244246052,-666.05,0.00027561,5]
[364796481,1749244246062,-518.59879986,0.00027561,5]
[364796482,1749244246072,-480.0,0.00027561,5]
[364796483,1749244246081,-643.59,0.00027561,5]
[364796484,1749244246091,-480.0,0.00027561,5]
[364796486,1749244246100,-793.76,0.00027561,5]
[364796489,1749244246110,-2265.64,0.00027561,5]
[364796491,1749244246119,-480.0,0.00027561,5]
[364796493,1749244246129,-480.0,0.00027561,5]
[364796494,1749244246138,-480.0,0.00027561,5]
[364796495,1749244246148,-1668.65,0.00027561,5]
[364796496,1749244246158,-869.09,0.00027561,5]
[364796497,1749244246167,-634.85,0.00027561,5]
[364796499,1749244246177,-542.22,0.00027561,5]
[364796501,1749244246187,-480.0,0.00027561,5]
[364796503,1749244246197,-725.41,0.00027561,5]
[364796504,1749244246207,-677.18,0.00027561,5]
[364796505,1749244246217,-480.0,0.00027561,5]
[364796506,1749244246227,-480.0,0.00027561,5]
[364796507,1749244246236,-279.30970295,0.00027561,5]
[364796508,1749244246246,-705.26,0.00027561,5]
[364796509,1749244246255,-656.63,0.00027561,5]
[364796510,1749244246264,-480.0,0.00027561,5]
[364796511,1749244246274,-480.0,0.00027561,5]
[364796512,1749244246283,-2278.48,0.00027561,5]
[364796513,1749244246292,-480.0,0.00027561,5]
[364796514,1749244246302,-480.0,0.00027561,5]
[364796515,1749244246311,-480.0,0.00027561,5]
[364796516,1749244246321,-1040.64,0.00027561,5]
[364796517,1749244246330,-1746.36,0.00027561,5]
[364796518,1749244246339,-480.0,0.00027561,5]
[364796519,1749244246349,-480.0,0.00027561,5]
[364796520,1749244246358,-522.25889901,0.00027561,5]
[364796521,1749244246367,-627.6,0.00027561,5]
[364796522,1749244246377,-480.0,0.00027561,5]
[364796523,1749244246387,-703.18,0.00027561,5]
[364796524,1749244246397,-480.0,0.00027561,5]
[364796525,1749244246406,-480.0,0.00027561,5]
[364796526,1749244246416,-7744.79,0.00027561,5]
[364796527,1749244246425,-480.0,0.00027561,5]
[364796528,1749244246435,-2136.85,0.00027561,5]
[364796529,1749244246445,-656.64,0.00027561,5]
[364796530,1749244246454,-480.0,0.00027561,5]
[364796531,1749244246463,-1032.42,0.00027561,5]
[364796532,1749244246473,-6066.12,0.00027561,5]
[364796533,1749244246483,-480.0,0.00027561,5]
[364796534,1749244246492,-480.0,0.00027561,5]
[364796535,1749244246502,-480.0,0.00027561,5]
[364796536,1749244246512,-736.69,0.00027561,5]
[364796537,1749244246522,-480.0,0.00027561,5]
[364796538,1749244246531,-674.12,0.00027561,5]
[364796539,1749244246541,-480.0,0.00027561,5]
[364796540,1749244246551,-909.27,0.00027561,5]
[364796542,1749244246560,-480.0,0.00027561,5]
[364796544,1749244246569,-480.0,0.00027561,5]
[364796546,1749244246578,-480.0,0.00027561,5]
[364796548,1749244246589,-480.0,0.00027561,5]
[364796550,1749244246602,-864.24,0.00027561,5]
[364796552,1749244246611,-2022.35,0.00027561,5]
[364796554,1749244246621,-4209.59,0.00027561,5]
[364796555,1749244246631,-814.24,0.00027561,5]
[364796556,1749244246641,-480.0,0.00027561,5]
[364796557,1749244246651,-1490.45,0.00027561,5]
[364796558,1749244246662,-480.0,0.00027561,5]
[364796559,1749244246673,-480.0,0.00027561,5]
[364796560,1749244246683,-480.0,0.00027561,5]
[364796561,1749244246692,-480.0,0.00027561,5]
[364796562,1749244246703,-3470.14,0.00027561,5]
[364796563,1749244246713,-646.24,0.00027561,5]
[364796565,1749244246722,-1958.13,0.00027561,5]
[364796567,1749244246732,-1094.2,0.00027561,5]
[364796568,1749244246741,-480.0,0.00027561,5]
[364796569,1749244246750,-480.0,0.00027561,5]
[364796570,1749244246760,-1081.32,0.00027561,5]
[364796571,1749244246769,-993.73,0.00027561,5]
[364796572,1749244246779,-1166.04,0.00027561,5]
[364796573,1749244246789,-492.64,0.00027561,5]
[364796574,1749244246799,-1784.97,0.00027561,5]
[364796575,1749244246809,-480.0,0.00027561,5]
[364796576,1749244246818,-480.0,0.00027561,5]
[364796577,1749244246828,-1728.24,0.00027561,5]
[364796578,1749244246838,-930.73,0.00027561,5]
[364796579,1749244246848,-480.0,0.00027561,5]
[364796580,1749244246858,-2507.7,0.00027561,5]
[364796581,1749244246868,-812.66,0.00027561,5]
[364796582,1749244246878,-480.0,0.00027561,5]
[364796583,1749244246888,-748.45,0.00027561,5]
[364796584,1749244246898,-480.0,0.00027561,5]
[364796585,1749244246908,-898.21,0.00027561,5]
[364796586,1749244246917,-758.37,0.00027561,5]
[364796587,1749244246927,-480.0,0.00027561,5]
[364796588,1749244246938,-833.19,0.00027561,5]
[364796589,1749244246947,-480.0,0.00027561,5]
[364796590,1749244246957,-480.0,0.00027561,5]
[364796591,1749244246967,-480.0,0.00027561,5]
[364796592,1749244246976,-480.0,0.00027561,5]
[364796593,1749244246986,-480.0,0.00027561,5]
[364796594,1749244246996,-990.17,0.00027561,5]
[364796595,1749244247006,-497.01,0.00027561,5]
[364796596,1749244247017,-480.0,0.00027561,5]
[364796597,1749244247026,-544.26,0.00027561,5]
[364796598,1749244247036,-480.0,0.00027561,5]
[364796599,1749244247046,-480.0,0.00027561,5]
[364796600,1749244247056,-480.0,0.00027561,5]
[364796601,1749244247065,-480.0,0.00027561,5]
[364796602,1749244247074,-532.61,0.00027561,5]
[364796603,1749244247084,-2049.03,0.00027561,5]
[364796604,1749244247094,-480.0,0.00027561,5]
[364796605,1749244247103,-480.0,0.00027561,5]
[364796606,1749244247113,-1173.17,0.00027561,5]
[364796607,1749244247122,-480.0,0.00027561,5]
[364796608,1749244247131,-480.0,0.00027561,5]
[364796609,1749244247142,-480.0,0.00027561,5]
[364796610,1749244247151,-480.0,0.00027561,5]
[364796611,1749244247161,-480.0,0.00027561,5]
[364796612,1749244247171,-657.99,0.00027561,5]
[364796613,1749244247181,-561.78,0.00027561,5]
[364796614,1749244247190,-650.57,0.00027561,5]
[364796615,1749244247200,-1694.44,0.00027561,5]
[364796616,1749244247210,-480.0,0.00027561,5]
[364796617,1749244247219,-288.846703,0.00027561,5]
[364796618,1749244247229,-611.49,0.00027561,5]
[364796619,1749244247239,-288.846703,0.00027561,5]
[364796620,1749244247248,-1468.34,0.00027561,5]
[364796621,1749244247257,-288.846703,0.00027561,5]
[364796622,1749244247267,-288.846703,0.00027561,5]
[364796623,1749244247278,-288.846703,0.00027561,5]
[364796624,1749244247287,-14979.31,0.00027561,5]
[364796625,1749244247297,-692.49,0.00027561,5]
[364796626,1749244247306,-5339.5,0.00027561,5]
[364796627,1749244247315,-2290.63,0.00027561,5]
[364796628,1749244247325,-480.0,0.00027561,5]
[364796629,1749244247334,-480.0,0.00027561,5]
[364796630,1749244247343,-1776.54,0.00027561,5]
[364796631,1749244247353,-480.0,0.00027561,5]
[364796632,1749244247362,-508.95,0.00027561,5]
[364796633,1749244247372,-480.0,0.00027561,5]
[364796634,1749244247381,-480.0,0.00027561,5]
[364796635,1749244247390,-480.0,0.00027561,2]
[364796636,1749244247400,-480.0,0.00027561,5]
[364796637,1749244247410,-2359.77,0.00027561,5]
[364796638,1749244247476,-675.52,0.00027561,5]
[364796639,1749244247486,-480.0,0.00027561,5]
[364796640,1749244247495,-480.0,0.00027561,5]
[364796641,1749244247504,-5936.43,0.00027561,5]
[364796642,1749244247514,-508.09,0.00027561,5]
[364796643,1749244247523,-480.0,0.00027561,2]
[364796644,1749244247531,-480.0,0.00027561,5]
[364796645,1749244247541,-1000.0,0.00027563,2]
[364796646,1749244247550,-655.5,0.00027569,2]
[364796647,1749244247559,-500.0,0.00027587,2]
[364796648,1749244247569,-8548.80709157,0.00027589,2]
[364796649,1749244247578,-1200.0,0.000276,10]
[364796650,1749244247587,-165.72254745,0.00027615,2]
[364796651,1749244247602,-355.23757582,0.0002762,2]
[364796652,1749244247611,-1285.12285844,0.00027626,2]
[364796653,1749244247619,-227.81064228,0.00027626,2]
[364796654,1749244247629,-193.66689883,0.00027626,5]
[364796655,1749244247638,-8252.87837434,0.00027626,2]
[364796656,1749244247648,-150.0,0.00027642,2]
[364796657,1749244247657,-757.20408,0.0002768,2]
[364796658,1749244247666,-5024.81271716,0.000277,2]
[364796659,1749244247677,-1500.0,0.000277,10]
[364796660,1749244247687,-215.0738,0.00027704,2]
[364796661,1749244247696,-757.20408,0.0002771,2]
[364796662,1749244247707,-603349.0924049,0.00027716,4]
[364796663,1749244249061,-651.70036829,0.00026587,2]
[364796664,1749244249072,-784.9815,0.00026587,2]
[364796665,1749244249083,-1451.034749,0.00026587,2]
[364796666,1749244249096,-545.152395,0.00026587,2]
[364796667,1749244249107,-1041.44708,0.00026587,2]
[364796668,1749244249118,-472.95900005,0.00026587,2]
[364796669,1749244249129,-685.922,0.00026587,2]
[364796670,1749244258532,537.0,0.0003561,120]
[364796671,1749244266704,250.0,0.00019,2]
[364796672,1749244300613,236.96,0.00035616,120]
[364796673,1749244318452,826.0,0.0003561,120]
[364796674,1749244516975,1000.00000001,0.000209,30]
[364796675,1749244596375,311.63,0.00025969,120]
[364796676,1749244596654,311.63,0.00029216,120]
[364796677,1749244596815,311.63,0.00032462,120]
[364796678,1749244680928,182.94,0.00016712,2]
[364796679,1749244795886,165.55528952,0.00016628,2]
[364796681,1749244997365,1305.52217771,0.00035616,120]
[364796682,1749245087788,1038.25,0.00025391,120]
[364796683,1749245133945,1000.0,0.00035616,120]
[364796684,1749245146130,-300.0,0.00019899,2]
[364796685,1749245146155,-10084.22913075,0.000199,2]
[364796686,1749245146184,-189615.77086925,0.0002,2]
[364796687,1749245157737,-58300.0,0.0002,2]
[364796688,1749245161209,-300.0,0.00019999,2]
[364796689,1749245161235,-49700.0,0.0002,2]
[364796690,1749245162213,-50000.0,0.0002,2]
[364796691,1749245186054,-50000.0,0.0002,2]
[364796692,1749245186923,-50000.0,0.0002,2]
[364796693,1749245189900,227.09,0.00035616,120]
[364796694,1749245196501,300.0,0.00033904,120]
[364796695,1749245198672,-195696.0,0.0002,2]
[364796696,1749245199239,2000.0,0.00025069,120]
[364796701,1749245226631,1517.64,0.000153,2]
[364796702,1749245227677,13926.52519,7.945e-05,2]
[364796703,1749245230482,591.66662995,0.00015,2]
[364796704,1749245240189,2062.74068771,0.0001305,2]
[364796753,1749245254142,1681.46795847,0.00018,2]
[364796755,1749245266883,-1025.07147938,0.00019999,2]
[364796756,1749245266910,-850.0,0.00019999,2]
[364796757,1749245266939,-78124.92852062,0.0002,2]
[364796758,1749245305465,-300.0,0.00019999,2]
[364796759,1749245305490,-19700.0,0.0002,2]